Cogmind - Beta 10.2 @@@ ROGUE MODE // 2021.11.29 @ 14:38:06 Player: tangiers Result: Destroyed by 8R-AWN with 8R-AWN's Boregun Performance ------------- Evolutions (1) 500 Regions Visited (5) 1000 Robots Destroyed (79) 395 Value Destroyed (1632) 1632 Prototype IDs (31) 620 Alien Tech Used (0) 0 Bonus (197) 197 TOTAL SCORE: 4344 Bonus ------- High Alert Combat Kills 45 Aligned with FarCom 300 Friendly Fire -148 Cogmind --------- Core Integrity 0/400 Matter 144/300 Energy 100/100 System Corruption 0% Temperature Cool (0) Movement Treading (180) Ox1 Location -9/Exiles Parts ------- > --- POWER (1) -------- (None) > --- PROPULSION (2) --- Light Treads Improved Treads > --- UTILITY (4) ------ Humpback Advanced Targeting Computer Advanced Targeting Computer > --- WEAPON (2) ------- Improved Assault Rifle Improved Assault Rifle > --- INVENTORY (24) --- Cooled Ion Engine Light Treads Light Treads Humpback Large Battery (300) High-capacity Matter Pod (200) High-capacity Matter Pod (60) Advanced Visual Processing Unit Improved Sensor Array Hacking Suite Hacking Suite Hacking Suite Light EM Pulse Cannon Light EM Pulse Cannon Improved Assault Rifle Grenade Launcher Mini Grenade Launcher Plasma Cutter Peak State ------------ > --- POWER ------------ Cooled Ion Engine > --- PROPULSION ------- Light Treads Improved Treads > --- UTILITY ---------- Humpback Advanced Targeting Computer Advanced Targeting Computer > --- WEAPON ----------- Improved Assault Rifle Improved Assault Rifle > --- INVENTORY -------- Cooled Ion Engine Light Treads Light Treads Light Treads Humpback Large Battery High-capacity Matter Pod High-capacity Matter Pod Advanced Visual Processing Unit Improved Sensor Array Hacking Suite Hacking Suite Hacking Suite Light EM Pulse Cannon Light EM Pulse Cannon Improved Assault Rifle Improved Assault Rifle Grenade Launcher Mini Grenade Launcher Plasma Cutter [Rating: 24] Favorites ----------- Power Cooled Ion Engine Engine Cooled Ion Engine Propulsion Light Treads Treads Light Treads Leg Aluminum Leg Wheel Wheel Utility High-capacity Storage Unit Device Improved Heat Sink Storage High-capacity Storage Unit Processor Advanced Targeting Computer Protection Light Armor Plating Weapon Improved Assault Rifle Energy Gun Spread Laser Energy Cannon Beam Cannon Ballistic Gun Improved Assault Rifle Launcher Grenade Launcher Special Weapon Plasma Cutter Build | -11 -10 -10 -9 -9 -9 ------- Run | Scr Mat Min Mat Min Exi Slots Evolved 2 | . . . 2 . . Power . | . . . . . . Propulsion . | . . . . . . Utility 2 | . . . 2 . . Weapon . | . . . . . . Parts Attached 82 | 4 17 5 42 5 9 Power 9 | 1 . . 7 . 1 Engine 9 | 1 . . 7 . 1 Core . | . . . . . . Reactor . | . . . . . . Propulsion 20 | 2 3 . 12 . 3 Treads 18 | 1 2 . 12 . 3 Leg . | . . . . . . Wheel 2 | 1 1 . . . . Hover . | . . . . . . Flight . | . . . . . . Utility 18 | 1 6 1 8 1 1 Device 3 | 1 . . 2 . . Storage 7 | . 4 . 2 . 1 Processor 2 | . . . 1 1 . Hackware . | . . . . . . Protection 6 | . 2 1 3 . . Artifact . | . . . . . . Weapon 35 | . 8 4 15 4 4 Energy Gun 7 | . 1 2 4 . . Energy Cannon 2 | . . 1 1 . . Ballistic Gun 14 | . 3 1 5 2 3 Ballistic Cannon . | . . . . . . Launcher 9 | . 3 . 4 2 . Special Weapon 3 | . 1 . 1 . 1 Impact Weapon . | . . . . . . Slashing Weapon . | . . . . . . Piercing Weapon . | . . . . . . Special Melee Weapon . | . . . . . . Unidentified Prototypes 3 | . . . 3 . . Parts Lost 8 | . 1 . 2 2 3 Power 1 | . . . . . 1 Propulsion 1 | . . . . . 1 Utility 2 | . 1 . . 1 . Weapon 4 | . . . 2 1 1 Highest Loss Streak 3 | . 1 . 1 1 3 Average Slot Usage (%) 98 | . 99 100 99 99 89 Engine 11 | . 14 14 10 11 10 Treads 23 | . 24 28 21 22 22 Device 3 | . 2 . 6 . . Storage 16 | . 18 14 17 22 12 Processor 6 | . . . 5 15 22 Protection 11 | . 6 14 14 6 . Energy Gun 5 | . 2 1 8 . . Energy Cannon 1 | . . . 2 . . Ballistic Gun 8 | . 23 . 10 4 2 Launcher 8 | . 1 26 . 17 19 Naked Turns . | . . . . . . Heaviest Build 92 | 13 57 48 82 82 92 Greatest Support 43 | 20 40 40 40 40 43 Greatest Overweight (x) 24 | 1 1 1 24 2 2 Average Overweight (x) 1 | . . 1 1 1 1 Largest Inventory Capacity 24 | 6 18 12 20 20 24 Average Capacity 16 | 6 11 12 16 20 23 Most Carried 23 | 6 12 12 20 20 23 Average Carried 15 | 5 9 11 16 19 18 Final Capacity 24 | 6 12 12 20 20 24 Final Carried 20 | 5 12 12 20 19 19 Class Distribution -------------------- 50% | Hauler-Mutant 40% | Mutant 9% | Scavenger-Mutant Dominant Class ---------------- Mutant | -10/Materials Mutant | -10/Mines Hauler-Mutant | -9/Materials Hauler-Mutant | -9/Mines Hauler-Mutant | -9/Exiles Resources | -11 -10 -10 -9 -9 -9 ----------- Run | Scr Mat Min Mat Min Exi Matter Collected 2245 | 240 480 136 625 194 570 Remotely . | . . . . . . Salvage Created 2020 | 189 463 130 1015 208 15 Parts 140 | 16 26 11 63 24 . Haulers Intercepted 6 | . 1 . 5 . . Recyclers Shooed 9 | . 5 . 4 . . Parts Field Recycled . | . . . . . . Retrieved Matter . | . . . . . . Parts Self-Destructed . | . . . . . . Prevented . | . . . . . . Kills | -11 -10 -10 -9 -9 -9 ------- Run | Scr Mat Min Mat Min Exi Combat Hostiles Destroyed 70 | . 9 8 20 26 7 Melee 1 | . . 1 . . . Guns 24 | . 6 . 18 . . Cannons 2 | . . . 2 . . AOE 43 | . 3 7 . 26 7 Classes Destroyed 11 | 2 3 1 2 3 . Builder 1 | . . . . 1 . Tunneler 6 | 5 . . . 1 . Hauler 6 | . 1 . 5 . . Recycler 5 | 1 2 . 1 1 . Watcher 6 | . 2 . 4 . . Swarmer 27 | . . 6 7 14 . Grunt 23 | . 9 2 10 2 . Brawler 1 | . . . 1 . . Duelist 1 | . . . . 1 . Sentry 2 | . . . 2 . . Assembled 16 | . . . . 9 7 Thug 1 | . . 1 . . . Best Kill Streak 10 | 2 5 3 6 10 7 Combat Bots Only 9 | . 3 3 5 9 7 Max Kills in Single Turn 4 | 2 2 3 2 4 3 Gunslinging 1 | . . . 1 . . Exploded 4 | . 2 3 . 4 3 Melee 1 | . . 1 . . . Uniques/NPCs Destroyed . | . . . . . . Combat | -11 -10 -10 -9 -9 -9 -------- Run | Scr Mat Min Mat Min Exi Damage Taken 2314 | . 337 57 637 280 1003 Core 499 | . 78 3 65 20 333 Absorbed by Shields . | . . . . . . Core Remaining (%) 83 | 100 . 67 . . . Volleys Fired 210 | 17 46 10 94 13 30 Largest 2 | 2 2 2 2 2 2 Hottest 140 | 80 100 65 140 63 60 Shots Fired 397 | 33 86 15 179 25 59 Gun 314 | 33 80 5 149 . 47 Cannon 21 | . . . 21 . . Launcher 55 | . 5 10 6 25 9 Special 7 | . 1 . 3 . 3 Kinetic 180 | . 71 . 62 . 47 Thermal 145 | 16 10 5 111 . 3 Explosive 55 | . 5 10 6 25 9 Electromagnetic 17 | 17 . . . . . Robot Hit Streak 36 | 4 16 3 12 11 36 Robot Miss Streak 7 | 2 3 1 7 1 1 Penetration Max . | . . . . . . Secondary Targets 1 | . . . 1 . . Max Gunslinging Chain 1 | . . . 1 . . Shots Hit Robots 279 | 20 58 5 135 12 49 Core Hits 185 | 7 30 15 69 45 19 Critical Hits 1 | . . . . . 1 Critical Kills . | . . . . . . Critical Parts Destroyed . | . . . . . . Melee Attacks . | . . . . . . Impact . | . . . . . . Slashing . | . . . . . . Piercing . | . . . . . . Sneak Attacks . | . . . . . . Combat Hostiles . | . . . . . . Follow-up Attacks . | . . . . . . Damage Inflicted 7716 | 269 1193 630 2339 2216 1069 Guns 3563 | 269 684 48 1929 . 633 Cannons 213 | . . . 213 . . Explosions 3740 | . 460 553 78 2216 433 Melee . | . . . . . . Ramming 197 | . 49 29 119 . . Kinetic 1979 | . 598 . 748 . 633 Thermal 2083 | 112 86 48 1394 440 3 Explosive 3300 | . 460 553 78 1776 433 Electromagnetic 157 | 157 . . . . . Impact . | . . . . . . Slashing . | . . . . . . Piercing . | . . . . . . Highest Corruption . | . . . . . . Average Corruption . | . . . . . . Corruption Purged . | . . . . . . Overload Shots . | . . . . . . Overflow Damage 208 | . 27 5 16 145 15 Projectiles 1 | . . . 1 . . Explosions 207 | . 27 5 15 145 15 Melee . | . . . . . . Knockbacks 2 | . 1 . 1 . . Impact 2 | . 1 . 1 . . Kinetic . | . . . . . . Secondary . | . . . . . . Self-Inflicted Damage 202 | . . 11 . 190 1 Shots 10 | . . 1 . 8 1 Rammed 37 | . 12 10 15 . . Targets Rammed 38 | . 13 10 15 . . Kicked . | . . . . . . Crushed 1 | . 1 . . . . Highest Temperature 240 | 216 42 90 240 18 . Average Temperature 55 | 93 14 35 62 8 . Received Heat Transfer 428 | . 186 15 201 26 . Siege Activations . | . . . . . . Robots Corrupted . | . . . . . . Combat Hostiles . | . . . . . . Parts Fried 2 | 2 . . . . . Impact Corruptions . | . . . . . . Robots Melted . | . . . . . . Combat Hostiles . | . . . . . . Parts Melted 7 | . 2 . 3 2 . Heat Transferred 3340 | 250 200 111 2252 500 27 Parts Sabotaged . | . . . . . . Parts Stolen . | . . . . . . Parts Stripped . | . . . . . . Power Chain Reactions . | . . . . . . Missiles Intercepted . | . . . . . . Alert | -11 -10 -10 -9 -9 -9 ------- Run | Scr Mat Min Mat Min Exi Peak Influence 619 | 30 280 227 321 619 . Initial 124 | . 19 57 . 124 . Average 133 | 14 124 80 109 468 . Maximum Alert Level 2 | . 1 1 1 2 . Low Security (%) 79 | 100 86 80 86 9 . Level 1 14 | . 13 19 13 11 . Level 2 6 | . . . . 79 . Level 3 . | . . . . . . Level 4 . | . . . . . . Level 5 . | . . . . . . High Security . | . . . . . . Max Security . | . . . . . . Squads Dispatched 5 | . 2 . 3 . . Investigation 1 | . . . 1 . . Extermination . | . . . . . . Reinforcement 4 | . 2 . 2 . . Assault . | . . . . . . Garrison . | . . . . . . Intercept . | . . . . . . Construction Impeded . | . . . . . . Haulers Reinforced . | . . . . . . Stealth | -11 -10 -10 -9 -9 -9 --------- Run | Scr Mat Min Mat Min Exi Distress Signals 5 | . . . 5 . . Communications Jammed . | . . . . . . Distress Signals . | . . . . . . Times Spotted 119 | . 21 5 58 28 7 Peak Tracking Total 9 | . 5 3 7 6 9 Tactical Retreats 20 | . 1 . 13 6 . Traps | -11 -10 -10 -9 -9 -9 ------- Run | Scr Mat Min Mat Min Exi Traps Triggered 2 | . . . 2 . . Indirectly . | . . . . . . Trap Hack Attempts . | . . . . . . Triggered . | . . . . . . Disarmed . | . . . . . . Reprogrammed . | . . . . . . Reused . | . . . . . . Traps Extracted . | . . . . . . Installed . | . . . . . . Triggered . | . . . . . . Machines | -11 -10 -10 -9 -9 -9 ---------- Run | Scr Mat Min Mat Min Exi Machines Disabled 22 | . 2 3 3 9 5 Max in Single Turn 6 | . 2 1 1 6 3 Machines Sabotaged . | . . . . . . Garrisons Compromised . | . . . . . . Overloaded Fab Kills . | . . . . . . Fab Network Shutdowns . | . . . . . . Hacking | -11 -10 -10 -9 -9 -9 --------- Run | Scr Mat Min Mat Min Exi Machines Accessed 10 | . 1 1 6 . 2 Terminals 6 | . 1 1 4 . . Fabricators . | . . . . . . Repair Stations 1 | . . . 1 . . Recycling Units 1 | . . . 1 . . Scanalyzers . | . . . . . . Garrison Access . | . . . . . . Total Hacks 57 | . 3 2 28 . 24 Successful 45 | . 2 1 18 . 24 Failed 11 | . 1 1 9 . . Catastrophic 1 | . . . 1 . . Database Lockouts 1 | . . . 1 . . Manual 28 | . 3 3 21 . 1 Terminals 27 | . 3 2 22 . . Fabricators . | . . . . . . Repair Stations 5 | . . . 5 . . Recycling Units 1 | . . . 1 . . Scanalyzers . | . . . . . . Garrison Access . | . . . . . . Terminal Hacks 35 | . 2 1 8 . 24 Record 23 | . . . . . 23 Robot Analysis 4 | . 2 1 1 . . Prototype ID Bank 3 | . . . 3 . . Branch Access Points 1 | . . . 1 . . Terminal Index 1 | . . . 1 . . Unreport Threat 1 | . . . 1 . . Locate Traps 1 | . . . 1 . . EX-Prototype ID Bank 1 | . . . . . 1 Fabricator Hacks . | . . . . . . Repair Station Hacks 4 | . . . 4 . . Scan Component 2 | . . . 2 . . Repair 2 | . . . 2 . . Recycling Unit Hacks . | . . . . . . Scanalyzer . | . . . . . . Garrison Access Hacks . | . . . . . . Unauthorized Hacks 6 | . . . 6 . . Terminals 5 | . . . 5 . . Track 2 | . . . 2 . . Botnet 2 | . . . 2 . . Operators 1 | . . . 1 . . Fabricators . | . . . . . . Repair Stations . | . . . . . . Recycling Units 1 | . . . 1 . . Tunnel 1 | . . . 1 . . Scanalyzers . | . . . . . . Garrison Access . | . . . . . . Data Cores Recovered . | . . . . . . Used . | . . . . . . Hacking Detections 7 | . 1 1 5 . . Full Trace Events . | . . . . . . Feedback Events . | . . . . . . Feedback Blocked . | . . . . . . Robot Schematics Acquired . | . . . . . . Robots Built . | . . . . . . Matter . | . . . . . . Time . | . . . . . . Total Robot Build Rating . | . . . . . . Part Schematics Acquired . | . . . . . . Parts Built . | . . . . . . Matter . | . . . . . . Time . | . . . . . . Total Part Build Rating . | . . . . . . Parts Repaired 2 | . . . 2 . . Time 52 | . . . 52 . . Parts Recycled . | . . . . . . Recycled Matter . | . . . . . . Retrieved Matter . | . . . . . . Retrieved Components . | . . . . . . Parts Scanalyzed . | . . . . . . Part Schematics Acquired . | . . . . . . Parts Damaged . | . . . . . . Bothacking | -11 -10 -10 -9 -9 -9 ------------ Run | Scr Mat Min Mat Min Exi Used RIF Installer . | . . . . . . Robots Hacked . | . . . . . . Non-combat . | . . . . . . Combat . | . . . . . . Robot Hacks Applied . | . . . . . . Relay Couplers Released . | . . . . . . Robots Rewired . | . . . . . . Allies Hacked . | . . . . . . Hacks Repelled . | . . . . . . Allies | -11 -10 -10 -9 -9 -9 -------- Run | Scr Mat Min Mat Min Exi Total Allies . | . . . . . . Largest Group . | . . . . . . Highest-Rated Group . | . . . . . . Highest-Rated Ally . | . . . . . . Total Orders . | . . . . . . Ally Attacks . | . . . . . . Total Damage . | . . . . . . Kills . | . . . . . . Allies Corrupted . | . . . . . . Allies Melted . | . . . . . . Intel | -11 -10 -10 -9 -9 -9 ------- Run | Scr Mat Min Mat Min Exi Robot Analysis Total 4 | . 2 1 1 . . Derelict Logs Recovered 3 | . . 2 . 1 . Drone Launches . | . . . . . . Drone Recoveries . | . . . . . . Exploration | -11 -10 -10 -9 -9 -9 ------------- Run | Scr Mat Min Mat Min Exi Turns Passed 8037 | 130 787 1278 4199 580 1063 Spaces Moved 3311 | 67 423 675 1401 282 463 Core 1 | . . . 1 . . Treads 3059 | . 239 675 1400 282 463 Legs 40 | 40 . . . . . Wheels 211 | 27 184 . . . . Hover . | . . . . . . Flight . | . . . . . . Fastest Speed 90 | 90 90 180 180 180 160 Average Speed 182 | 107 138 180 195 188 195 Slowest Speed 1250 | 120 180 180 1250 200 200 Overloaded Moves . | . . . . . . Propulsion Burnouts . | . . . . . . Robots Hopped . | . . . . . . Cave-ins Triggered . | . . . . . . Exploration Rate (%) 58 | 5 46 97 68 69 68 Regions Visited 5 Branch Regions 3 Pre-discovered Areas 2 | . . . 1 . 1 Known Exits Taken 1 | . . . 1 . . Unknown Exits Taken 4 | 1 1 1 . 1 . Scrap Searched 4 | . . 3 . 1 . Spaces Dug 58 | . 1 32 11 14 . Terrain Destroyed 358 | . 39 42 36 205 36 Melee . | . . . . . . Projectile 4 | . 1 . 3 . . AOE 354 | . 38 42 33 205 36 Terrain Rammed . | . . . . . . Walls Destroyed . | . . . . . . Machines Disabled . | . . . . . . Actions | -11 -10 -10 -9 -9 -9 --------- Run | Scr Mat Min Mat Min Exi Total 4874 | 92 529 717 2672 305 559 Wait 1103 | . 7 5 1058 5 28 Move 3306 | 66 422 674 1400 281 463 Hop . | . . . . . . Pick Up 70 | 2 12 6 27 1 22 Fast Attach 20 | 1 3 1 14 . 1 Attach 15 | 2 2 . 7 2 2 Detach 5 | . 2 . 3 . . Swap 48 | 1 12 4 22 3 6 Drop 59 | 3 10 7 32 . 7 Fire 210 | 17 46 10 94 13 30 Melee . | . . . . . . Ram . | . . . . . . Kick . | . . . . . . Crush 38 | . 13 10 15 . . Escape Stasis . | . . . . . . Rewire . | . . . . . . Trap . | . . . . . . Miscellaneous . | . . . . . . Route ------- -11/Scrapyard -10/Materials (discovered 2 exits: *Mat / *Min) -10/Mines (discovered 2 exits: *Mat x2) -9/Materials (discovered 4 exits: [*Mat x2] / *Min / *Sto) -9/Mines (discovered 2 exits: [*Mat] / *Exi) -9/Exiles History --------- Turn | Location | Event 1 | -11/Scrapyard | Discovered new exit (range 3) 131 | -11/Scrapyard | Entered Materials 214 | -10/Materials | Discovered new exit (range 13) 308 | -10/Materials | Build established: Mutant 769 | -10/Materials | Discovered new exit (range 13) 918 | -10/Materials | Entered Mines 1080 | -10/Mines | Met a Derelict bent on vengeance 1139 | -10/Mines | Learned 2 Materials zone layouts 1206 | -10/Mines | Discovered new exit (range 13) 1756 | -10/Mines | Discovered new exit (range 4) 1895 | -10/Mines | Learned Materials security intel 2196 | -10/Mines | Entered Materials 2196 | -9/Materials | Evolved 2 slots: Utility x2 2542 | -9/Materials | Repaired Lgt. Treads 2570 | -9/Materials | Repaired Lgt. Armor Plating 2730 | -9/Materials | Build established: Scavenger-Mutant 3101 | -9/Materials | Discovered new exit (range 16) 3460 | -9/Materials | Build established: Mutant 4259 | -9/Materials | Build established: Hauler-Mutant 4270 | -9/Materials | Identified exit to Mines 4270 | -9/Materials | Identified exit to Storage 4433 | -9/Materials | Discovered new exit (range 10) 4978 | -9/Materials | Central database locked down 5648 | -9/Materials | Discovered new exit (range 4) 6395 | -9/Materials | Entered Mines 6421 | -9/Mines | Discovered new exit (range 11) 6544 | -9/Mines | Destroyed 7 combat bots 6636 | -9/Mines | Assembled infested the area 6641 | -9/Mines | Assisted by a Guerilla fighting off Assembled 6702 | -9/Mines | Destroyed 9 combat bots 6797 | -9/Mines | Learned Materials trap positions 6962 | -9/Mines | Deemed a non-threat by the Exiles lab entrance 6964 | -9/Mines | Discovered new exit (range 5) 6975 | -9/Mines | Entered Exiles 7019 | -9/Exiles | Met 8R-AWN 7049 | -9/Exiles | Met EX-HEX 7259 | -9/Exiles | Met EX-DEC 7492 | -9/Exiles | Learned location of Zion (-6) 7536 | -9/Exiles | Met EX-BIN 7648 | -9/Exiles | Aligned with FarCom system 7650 | -9/Exiles | Given EX-Vault access code 7698 | -9/Exiles | Opened EX-Vault 7744 | -9/Exiles | Warned to stay clear of 0b10 Research branches 7865 | -9/Exiles | Attacked by the Exiles 7921 | -9/Exiles | Destroyed 7 combat bots 7975 | -9/Exiles | Core integrity fell below 50% 8006 | -9/Exiles | Core integrity fell below 20% 8038 | -9/Exiles | Destroyed by 8R-AWN with 8R-AWN's Boregun Last Messages --------------- 07974_ Penetrated by HV Slug. 07974_ HV Slug penetrates Wall. 07976_ Penetrated by HV Slug. 07976_ HV Slug penetrates Wall. 07976_ Penetrated by HV Slug. 07984_ The unstable cave ceiling collapses. 07985_ Penetrated by HV Slug. 07992_ Critical hit. 07992_ Lgt. Treads destroyed. 07996_ Penetrated by HV Slug. 07998_ The unstable cave ceiling collapses. 08001_ Penetrated by HV Slug. 08005_ Destroyed Prototype Protection. 08008_ Penetrated by HV Slug. 08017_ Critical hit. 08017_ Cld. Ion Engine destroyed. 08017_ Penetrated by HV Slug. 08029_ HV Slug penetrates Wall. 08034_ The unstable cave ceiling collapses. 08034_ Penetrated by HV Slug. Map ----- +----------------------------------------------------+ | ?????????????????????????????????????????????????? | | ?????????????????????????????????????????????????? | | ?????????????????????????????????????????????????? | | ?????????????????????????????????????????????????? | | ?????????????????????????????????????????????????? | | ?????????????????????????????????????????????????? | | ?????????????????????????????????????????????????? | | ????????????????????????????????????????????????## | | ????????????????????????????????????????????????#" | | ????????????????????????????????????????????????#" | | ????????????????????????? ??????????????????????#" | | ????????????????????????? ??????????????????????#" | | ????????????????????????? ??????????????????????#" | | ????????????????????????? ??????????????????????#" | | ????????????????????????? ??????????????????????## | | ????????????????????????? ?????????????????????? | | ????????????????????????? ???##????????????????""" | | ????????????????????????# ### ?????????????????""" | | ???????? ??????????????##;##;#???????????????????? | | ???????? ######???????#!!! #???????????????????? | | ??????? #""#?????## #???????????????????? | | ??????? ?????# #???????????????????? | | ???????" #???###! "###??????????##?????? | | ???????" #### ! #?????????? """??? | | ????????# ## # #??????????" """#?? | | ?????????# @ # #??????????" ??? | | ????????????# g ## ##?????????"" ??? | | ????????????#### # #????????"" "#?? | | ???????????????### #???????? ""??? | | ?????????########" #?????????" "???? | | ?????????# !!""""" #?????????# #???? | | ?????????# "# # ##???### ###?# | | ?????????# "# ## "#####X# #"### | | ?????????# #####" """" | | ?????????# !""""""###???#"# "" " | | ?????????##########?????#### " | | ???????????????????????????### | | ?????????????????????????????### | | ???????????????????????????????## | | ????????????????????????????????## | | ?????????????????????????????????##" | | ??????????????????????????????????#""" | | ?????????????????????????????????##" | | ?????????????????????????????????#"" | | ????????????????????????????????##""" "" | | ????????????????????????????????#""" """ | | ????????????????????????????????#""" "" | | ????????????????????????????????#"" # | | ????????????????????????????????#""" | | ????????????????????????????????#"" | +----------------------------------------------------+ Best States ------------- Heat Dissipation 56 Energy Generation 14 Energy Capacity 280 Matter Stores 300 Matter Capacity 300 Sight Range 16 Terrain Scan Range 16 Terrain Scan Density 10 Armor Coverage 300 Power Shielding 33 Evasion (%) 42 Targeting Accuracy 16 Recoil Reduction 2 Item Schematics ----------------- None Robot Schematics ------------------ None Fabricated ------------ Nothing Alien Tech Used ----------------- None Achievements -------------- None Challenges ------------ None Game ------ Seed LongswordWardroneFirepult Manual? 0 Play Time 00:49:02 Cumulative 307.5 hours Start 2021.11.21 @ 19:27:53 End 2021.11.29 @ 14:38:06 Sessions 1 Manual Loads 0 Difficulty Rogue Special Mode None Game No. 228 Rogue 228 Adventurer 0 Explorer 0 Win Type - Total 6 Types 5/0/1/0/0/0/0/0/0 Lore% 54 Gallery% 76 Achievement% 61 Wizard Run 0 Options --------- ASCII 0 Keyboard 0 Movement Numpad Keybinds 0 Fullscreen 2 Font 18/TerminusBold Map View 76x50 Tactical HUD 1 Map Filters NONE Filters NONE Steam 1 RUN: 0b715ef3-2d38-4c5b-9cff-bd8c3282c155